Cogmind - Beta 13 @@@ ROGUE MODE // 2024.07.09 @ 23:08:17 Player: gigi283 Result: Destroyed by D-53 Grenadier with Mini Grenade Launcher Performance ------------- Evolutions (0) 0 Regions Visited (2) 400 Robots Destroyed (15) 75 Value Destroyed (419) 419 Prototype IDs (4) 80 Alien Tech Used (0) 0 Bonus (0) 0 TOTAL SCORE: 974 Bonus ------- None Cogmind --------- Core Integrity 0/250 Matter 272/300 Energy 160/160 System Corruption 2% Temperature Cool (0) Movement Walking (120) Location -10/Mines Parts ------- > --- POWER (1) -------- Light Nuclear Core > --- PROPULSION (2) --- Improved Aluminum Leg Improved Aluminum Leg > --- UTILITY (2) ------ Medium Storage Unit Experimental Sensor Array > --- WEAPON (2) ------- Heavy Assault Rifle Grenade Launcher > --- INVENTORY (10) --- Heavy Ion Engine Aluminum Leg Improved Aluminum Leg Improved Heat Sink Targeting Computer Small Laser Mining Laser Peak State ------------ > --- POWER ------------ Light Nuclear Core > --- PROPULSION ------- Improved Aluminum Leg Improved Aluminum Leg > --- UTILITY ---------- Medium Storage Unit Experimental Sensor Array > --- WEAPON ----------- Spread Laser Heavy Assault Rifle > --- INVENTORY -------- Heavy Ion Engine Aluminum Leg Improved Aluminum Leg Improved Heat Sink Small Laser Grenade Launcher Mining Laser [Rating: 22] Favorites ----------- Power Light Nuclear Core Engine Heavy Ion Engine Power Core Light Nuclear Core Propulsion Improved Aluminum Leg Leg Improved Aluminum Leg Wheel Compact Wheel Utility Medium Storage Unit Device Improved Heat Sink Storage Medium Storage Unit Weapon Spread Laser Energy Gun Spread Laser Ballistic Gun Assault Rifle Launcher Grenade Launcher Build | -11 -10 -10 ------- Run | Yrd Mat Min Slots Evolved . | . . . Power . | . . . Propulsion . | . . . Utility . | . . . Weapon . | . . . Parts Attached 21 | 6 8 7 Power 6 | 2 2 2 Engine 4 | 2 1 1 Core 2 | . 1 1 Reactor . | . . . Propulsion 5 | 2 2 1 Treads . | . . . Leg 3 | . 2 1 Wheel 2 | 2 . . Hover . | . . . Flight . | . . . Utility 5 | . 3 2 Device 4 | . 2 2 Storage 1 | . 1 . Processor . | . . . Hackware . | . . . Protection . | . . . Artifact . | . . . Weapon 5 | 2 1 2 Energy Gun 2 | 1 1 . Energy Cannon . | . . . Ballistic Gun 2 | 1 . 1 Ballistic Cannon . | . . . Launcher 1 | . . 1 Special Weapon . | . . . Impact Weapon . | . . . Slashing Weapon . | . . . Piercing Weapon . | . . . Special Melee Weapon . | . . . Unidentified Prototypes 2 | . 1 1 Parts Lost 3 | . . 3 Power 1 | . . 1 Propulsion 1 | . . 1 Utility . | . . . Weapon 1 | . . 1 Highest Loss Streak 2 | . . 2 To Critical Strikes . | . . . Average Slot Usage (%) 93 | . 86 98 Engine 3 | . 2 3 Core 10 | . 11 9 Leg 27 | . 27 27 Device 13 | . 13 14 Storage 9 | . 2 14 Energy Gun 14 | . 14 14 Ballistic Gun 14 | . 14 14 Naked Turns . | . . . Heaviest Build 24 | 9 21 24 Greatest Support 26 | 26 26 26 Greatest Overweight (x) 1 | . . 1 Average Overweight (x) . | . . . Largest Inventory Capacity 10 | 5 10 10 Average Capacity 8 | 5 5 10 Most Carried 8 | 5 7 8 Average Carried 5 | 2 5 6 Final Capacity 10 | 5 10 10 Final Carried 7 | 5 7 7 Class Distribution -------------------- 100% | Mutant Dominant Class ---------------- Mutant | -10/Materials Mutant | -10/Mines Resources | -11 -10 -10 ----------- Run | Yrd Mat Min Matter Collected 532 | 199 142 191 Remotely . | . . . Salvage Created 386 | . 115 271 Parts 32 | . 13 19 Haulers Intercepted . | . . . Recyclers Shooed . | . . . Parts Field Recycled . | . . . Retrieved Matter . | . . . Parts Self-Destructed . | . . . Prevented . | . . . Kills | -11 -10 -10 ------- Run | Yrd Mat Min Combat Hostiles Destroyed 14 | . 5 9 Guns 14 | . 5 9 Classes Destroyed 4 | . 3 1 Operator 1 | . 1 . Swarmer 6 | . 3 3 Grunt 6 | . 2 4 Sentry 2 | . . 2 Best Kill Streak 4 | . 4 3 Combat Bots Only 3 | . 3 3 Max Kills in Single Turn 1 | . 1 1 Gunslinging . | . . . Exploded . | . . . Melee . | . . . Uniques/NPCs Destroyed . | . . . Combat | -11 -10 -10 -------- Run | Yrd Mat Min Hostile Shots Fired 82 | . 16 66 Missed 17 | . 3 14 Damage Taken 866 | . 131 735 Core 254 | . 16 238 Absorbed by Shields . | . . . Core Remaining (%) 100 | 100 . . Volleys Fired 45 | . 21 24 Largest 2 | . 2 2 Hottest 85 | . 85 85 Shots Fired 88 | . 41 47 Gun 87 | . 41 46 Cannon . | . . . Launcher 1 | . . 1 Special . | . . . Kinetic 45 | . 21 24 Thermal 42 | . 20 22 Explosive 1 | . . 1 Electromagnetic . | . . . Robot Hit Streak 10 | . 8 10 Robot Miss Streak 12 | . 12 7 Penetration Max . | . . . Secondary Targets 4 | . . 4 Max Gunslinging Chain 1 | . . 1 Shots Hit Robots 62 | . 25 37 Core Hits 56 | . 21 35 Critical Kills . | . . . Critical Parts Destroyed . | . . . Critical Strikes . | . . . Melee Attacks . | . . . Impact . | . . . Slashing . | . . . Piercing . | . . . Sneak Attacks . | . . . Combat Hostiles . | . . . Follow-up Attacks . | . . . Damage Inflicted 813 | . 234 579 Guns 756 | . 234 522 Cannons . | . . . Explosions 49 | . . 49 Melee . | . . . Ramming 8 | . . 8 Kinetic 314 | . 89 225 Thermal 442 | . 145 297 Explosive 49 | . . 49 Electromagnetic . | . . . Impact . | . . . Slashing . | . . . Piercing . | . . . Highest Corruption 2 | . 2 2 Average Corruption 2 | . 2 2 Corruption Purged . | . . . Corruption Blocked . | . . . Effects 6 | . 2 4 Message Errors 1 | . . 1 Matter Fused 3 | . 2 1 Heat Flow Errors 1 | . . 1 Data Loss (minor) 1 | . . 1 Overload Shots . | . . . Overflow Damage . | . . . Projectiles . | . . . Explosions . | . . . Melee . | . . . Knockbacks . | . . . Impact . | . . . Kinetic . | . . . Secondary . | . . . Self-Inflicted Damage . | . . . Shots . | . . . Rammed . | . . . Targets Rammed 3 | . . 3 Kicked 3 | . . 3 Crushed . | . . . Highest Temperature 223 | . 159 223 Average Temperature 72 | . 83 67 Received Heat Transfer 294 | . 33 261 Effects 1 | . . 1 Interference 1 | . . 1 Siege Activations . | . . . Robots Corrupted . | . . . Combat Hostiles . | . . . Parts Fried . | . . . Impact Corruptions . | . . . Robots Melted . | . . . Combat Hostiles . | . . . Parts Melted . | . . . Heat Transferred 545 | . 180 365 Parts Sabotaged . | . . . Parts Stolen . | . . . Parts Stripped . | . . . Power Chain Reactions . | . . . Alert | -11 -10 -10 ------- Run | Yrd Mat Min Peak Influence 270 | . 181 270 Initial 70 | . . 70 Average 140 | . 112 174 Maximum Alert Level 1 | . . 1 Low Security (%) 73 | 100 100 51 Level 1 26 | . . 48 Level 2 . | . . . Level 3 . | . . . Level 4 . | . . . Level 5 . | . . . High Security . | . . . Max Security . | . . . Squads Dispatched 1 | . 1 . Investigation . | . . . Extermination . | . . . Reinforcement 1 | . 1 . Assault . | . . . Garrison . | . . . Intercept . | . . . Searches Triggered . | . . . Construction Impeded . | . . . Haulers Reinforced . | . . . Active Scanning Responses . | . . . Cargo Convoy Interrupts . | . . . Stealth | -11 -10 -10 --------- Run | Yrd Mat Min Distress Signals 3 | . 2 1 Communications Jammed . | . . . Distress Signals . | . . . Times Spotted 21 | . 10 11 Peak Tracking Total 4 | . 4 3 Tactical Retreats . | . . . Traps | -11 -10 -10 ------- Run | Yrd Mat Min Traps Triggered 1 | . 1 . Indirectly . | . . . Trap Hack Attempts . | . . . Triggered . | . . . Disarmed . | . . . Reprogrammed . | . . . Reused . | . . . Traps Extracted . | . . . Installed . | . . . Triggered . | . . . Machines | -11 -10 -10 ---------- Run | Yrd Mat Min Machines Disabled 1 | . . 1 Max in Single Turn 1 | . . 1 Machines Repaired . | . . . Machines Dismantled . | . . . Machines Sabotaged . | . . . Overloaded Fab Kills . | . . . Hacking | -11 -10 -10 --------- Run | Yrd Mat Min Machines Accessed 2 | . 2 . Terminals 2 | . 2 . Fabricators . | . . . Repair Stations . | . . . Recycling Units . | . . . Scanalyzers . | . . . Garrison Access . | . . . Total Hacks 5 | . 5 . Successful 3 | . 3 . Failed 2 | . 2 . Catastrophic . | . . . Database Lockouts . | . . . Manual 5 | . 5 . Terminals 5 | . 5 . Fabricators . | . . . Repair Stations . | . . . Recycling Units . | . . . Scanalyzers . | . . . Garrison Access . | . . . Terminal Hacks 1 | . 1 . Prototype ID Bank 1 | . 1 . Fabricator Hacks . | . . . Repair Station Hacks . | . . . Recycling Unit Hacks . | . . . Scanalyzer . | . . . Garrison Access Hacks . | . . . Unauthorized Hacks 2 | . 2 . Terminals 2 | . 2 . Botnet 2 | . 2 . Fabricators . | . . . Repair Stations . | . . . Recycling Units . | . . . Scanalyzers . | . . . Garrison Access . | . . . Data Cores Recovered . | . . . Used . | . . . Hacking Detections 1 | . 1 . Full Trace Events . | . . . Feedback Events . | . . . Feedback Blocked . | . . . Robot Schematics Acquired . | . . . Robots Built . | . . . Authchips . | . . . Time . | . . . Total Robot Build Rating . | . . . Part Schematics Acquired . | . . . Parts Built . | . . . Authchips . | . . . Time . | . . . Total Part Build Rating . | . . . Parts Repaired . | . . . Time . | . . . Parts Recycled . | . . . Recycled Matter . | . . . Retrieved Matter . | . . . Retrieved Components . | . . . Parts Scanalyzed . | . . . Part Schematics Acquired . | . . . Parts Damaged . | . . . Bothacking | -11 -10 -10 ------------ Run | Yrd Mat Min Used RIF Installer . | . . . Robots Hacked . | . . . Non-combat . | . . . Combat . | . . . Robot Hacks Applied . | . . . Relay Couplers Released . | . . . Fabnet Peak Effective % . | . . . Robots Rewired . | . . . Allies Hacked . | . . . Hacks Repelled . | . . . Allies | -11 -10 -10 -------- Run | Yrd Mat Min Total Allies . | . . . Largest Group . | . . . Highest-Rated Group . | . . . Highest-Rated Ally . | . . . Total Orders . | . . . Ally Attacks . | . . . Total Damage . | . . . Kills . | . . . Allies Corrupted . | . . . Allies Melted . | . . . Intel | -11 -10 -10 ------- Run | Yrd Mat Min Robot Analysis Total . | . . . Derelict Logs Recovered 1 | . . 1 Drone Launches . | . . . Drone Recoveries . | . . . Exploration | -11 -10 -10 ------------- Run | Yrd Mat Min Turns Passed 934 | 50 366 518 Spaces Moved 618 | 44 231 343 Core 7 | 7 . . Treads . | . . . Legs 560 | . 217 343 Wheels 51 | 37 14 . Hover . | . . . Flight . | . . . Fastest Speed 50 | 50 90 120 Average Speed 117 | 84 118 120 Slowest Speed 190 | 100 120 190 Overloaded Moves . | . . . Propulsion Burnouts . | . . . Robots Hopped . | . . . Cave-ins Triggered . | . . . Exploration Rate (%) 34 | 4 36 62 Regions Visited 2 Branch Regions 1 Pre-discovered Areas 1 | . . 1 Known Exits Taken . | . . . Unknown Exits Taken 2 | 1 1 . Scrap Searched 1 | . . 1 Spaces Dug . | . . . Terrain Destroyed 9 | . . 9 Melee . | . . . Projectile . | . . . AOE 9 | . . 9 Terrain Rammed . | . . . Walls Destroyed . | . . . Machines Disabled . | . . . Actions | -11 -10 -10 --------- Run | Yrd Mat Min Total 739 | 54 285 400 Wait 24 | . 8 16 Move 616 | 43 230 343 Hop . | . . . Pick Up 15 | 5 7 3 Fast Attach 14 | 4 8 2 Attach 5 | 1 . 4 Detach 2 | . . 2 Swap 2 | 1 . 1 Drop 13 | . 11 2 Fire 45 | . 21 24 Melee . | . . . Ram . | . . . Kick 3 | . . 3 Crush . | . . . Escape Stasis . | . . . Rewire . | . . . Trap . | . . . Miscellaneous . | . . . Route ------- -11/Scrapyard -10/Materials -10/Mines (discovered 2 exits: [*Mat x2]) History --------- Turn | Location | Event 37 | -11/Scrapyard | Discovered new exit (range 14) 51 | -11/Scrapyard | Entered Materials 261 | -10/Materials | Discovered new exit (range 11) 306 | -10/Materials | Build established: Mutant 417 | -10/Materials | Entered Mines 462 | -10/Mines | Learned location of Storage (-9) 479 | -10/Mines | Discovered new exit (range 5) 549 | -10/Mines | Discovered new exit (range 9) 681 | -10/Mines | Found a damaged Exp. Sensor Array with a note attached 684 | -10/Mines | Found Prototype Device 685 | -10/Mines | Identified Exp. Sensor Array 794 | -10/Mines | Learned Materials garrison access intel 796 | -10/Mines | Core integrity fell below 50% 886 | -10/Mines | Assembled infested the area 891 | -10/Mines | Assisted by a Guerilla fighting off Assembled 932 | -10/Mines | Core integrity fell below 20% 935 | -10/Mines | Destroyed by D-53 Grenadier with Mini Grenade Launcher Last Messages --------------- 00811_ Switching to secondary target: Y-45 Defender. 00817_ Critical hit (Burn: +37). 00818_ Overheating: System interference. 00818_ Spread Laser temporarily disabled. 00820_ Y-45 Defender destroyed. 00822_ Acquired 30 matter. 00827_ Dropped Assault Rifle. 00828_ Acquired Hvy. Assault Rifle. 00836_ Acquired Targeting Computer. 00853_ K-01 Serf collects debris. 00886_ ALERT: Infestation in the mines, dispatching Demolisher response squad. 00914_ System corrupted: Component data lost. 00931_ C-30 ARC bursts open, deploying its payload. 00931_ D-53 Grenadier unfolds itself. 00931_ K-01 Serf destroyed. 00931_ Spread Laser destroyed. 00932_ K-01 Serf collects debris. Map ----- +----------------------------------------------------+ | | | | | | | | | | | | | | | | | ???????????????????????######????????????????????? | | ??????????????????????##" "##???????????????????? | | ??????????????????????#!! !|#???????????????????? | | ??????????????????????#[! !#???????????????????? | | ??????????????????????## ########?????????????? | | ?????####?????????????###++## #?????????????? | | #???## ##????????????#=%! #?????????????? | | #???# ##???????????#%!* #??????????????? | | ##### ##???????####=!! ##??????????????? | | #????#### ###???????????????? | | # ###### [ ######?????????????????? | | ######### ## k d ##??????????????????????? | | ????????# ### d ####????????????????????? | | ????##### #?# ?#### ##???????????????????? | | ???## ## #?# #????# #???????????????????? | | ??## # ### #????# #???????????????????? | | ?## #????# #???????????????????? | | ?# ! #????# @ ###?????????????????? | | ?# ##########????# ##????????????????? | | ?## #?????????????# ##???????????????? | | ??### #?????????????## #########????##?? | | ##### #??????????????###### # #??? ??? | | #????????????????????### ###### #??? ???? | | #######??????????????????????# ##????# #?? #???? | | ?????????????????????????????# ##?????# ### #???? | | ?????????????????????????????# #??????# ? #???? | | ?????????????????????????????# #??????##### #???? | | ?????????????????????????????# #??????????? ??? | | ????????????????????????????? ????????????## ?? | | #??????????????????????????? ???????????????#? | | ##########?????????????????? ???????????????? | | % #????????????????? ???????????????? | | ! #????????????????? #???????????????? | | ######## #???????????????? ##???????????????? | | ???????# #???????????????? ## ??????????????????? | | ???????# #??????????????????## ?????????????????? | | ???????# #????????????????????# ?????????????????? | | ???????# #???????????????????????????????????????? | | ???????# #???????????????????????????????????????? | | ######## ######??????????????????????????????????? | | %* #??????????????????????????????????? | | ! % < #??????????????????????????????????? | +----------------------------------------------------+ Best States ------------- Heat Dissipation 39 Energy Generation 14 Energy Capacity 280 Matter Stores 300 Matter Capacity 300 Sight Range 16 Robot Scan Range 20 Terrain Scan Density 10 Evasion (%) 55 Item Schematics ----------------- None Robot Schematics ------------------ None Fabricated ------------ Nothing Alien Tech Used ----------------- None Achievements -------------- None Challenges ------------ None Game ------ Seed FieldComponentRegenerator Manual? 0 Play Time 00:09:46 Cumulative 32.0 hours Start 2024.07.09 @ 22:59:49 End 2024.07.09 @ 23:08:17 Sessions 1 Manual Loads 0 Difficulty Rogue Special Mode None Game No. 44 Rogue 44 Adventurer 0 Explorer 0 Win Type - Total 0 Types 0/0/0/0/0/0/0/0/0 Lore% 17 Gallery% 26 Achievement% 22 Wizard Run 0 Options --------- Layout 2 ASCII 0 Keyboard 0 Movement Mouse Keybinds 0 Fullscreen 2 Font 24/Crisp Map View 50x44 Zoom Use 0% Tactical HUD 1 Map Filters NONE Filters NONE Steam 1 RUN: 3856ea09-377d-4dfa-a825-38382b294a11